Cogmind - Beta 13 @@@ ROGUE MODE // 2024.04.07 @ 02:38:37 Player: chexo4 Result: Destroyed by G-47 Trooper with Particle Gun Performance ------------- Evolutions (2) 1000 Regions Visited (4) 800 Robots Destroyed (31) 155 Value Destroyed (398) 398 Prototype IDs (4) 80 Alien Tech Used (0) 0 Bonus (56) 56 TOTAL SCORE: 2489 Bonus ------- Follower Combat Kills 66 Friendly Fire -10 Cogmind --------- Core Integrity 0/550 Matter 264/300 Energy 52/100 System Corruption 0% Temperature Cool (9) Movement Core (50) Location -8/Materials Parts ------- > --- POWER (1) -------- (None) > --- PROPULSION (6) --- (None) > --- UTILITY (2) ------ (None) > --- WEAPON (2) ------- (None) > --- INVENTORY (5) ---- Light Ion Engine Improved Medium Laser Light Assault Rifle Rocket Launcher Datajack Peak State ------------ > --- POWER ------------ Light Nuclear Core > --- PROPULSION ------- Flight Unit Flight Unit Flight Unit Flight Unit Flight Unit Flight Unit > --- UTILITY ---------- Small Storage Unit Hacking Suite > --- WEAPON ----------- Precision Beam Rifle Enhanced Autogun > --- INVENTORY -------- Light Ion Engine Flight Unit Compact Matter Pod Improved Medium Laser Light Assault Rifle Rocket Launcher Datajack Mining Laser [Rating: 22] Favorites ----------- Power Light Ion Engine Engine Light Ion Engine Power Core Light Nuclear Core Propulsion Flight Unit Wheel Wheel Flight Unit Flight Unit Utility Small Storage Unit Device Improved Terrain Scanner Storage Small Storage Unit Processor Transport Network Coupler Hackware Hacking Suite Weapon Light Assault Rifle Energy Gun Improved Medium Laser Ballistic Gun Light Assault Rifle Special Weapon Mining Laser Special Melee Weapon Datajack Build | -11 -10 -9 -9 -8 ------- Run | Yrd Mat Mat Min Mat Slots Evolved 4 | . . 2 . 2 Power . | . . . . . Propulsion 4 | . . 2 . 2 Utility . | . . . . . Weapon . | . . . . . Parts Attached 43 | 6 10 8 6 13 Power 6 | 1 1 1 1 2 Engine 5 | 1 1 1 1 1 Core 1 | . . . . 1 Reactor . | . . . . . Propulsion 20 | 2 3 5 4 6 Treads . | . . . . . Leg . | . . . . . Wheel 5 | 2 3 . . . Hover . | . . . . . Flight 15 | . . 5 4 6 Utility 8 | 1 3 1 1 2 Device 3 | 1 1 1 . . Storage 3 | . 1 . 1 1 Processor 1 | . 1 . . . Hackware 1 | . . . . 1 Protection . | . . . . . Artifact . | . . . . . Weapon 9 | 2 3 1 . 3 Energy Gun 5 | 1 2 1 . 1 Energy Cannon . | . . . . . Ballistic Gun 2 | 1 . . . 1 Ballistic Cannon . | . . . . . Launcher . | . . . . . Special Weapon 1 | . . . . 1 Impact Weapon . | . . . . . Slashing Weapon . | . . . . . Piercing Weapon . | . . . . . Special Melee Weapon 1 | . 1 . . . Unidentified Prototypes 1 | . . . . 1 Corrupted Parts 1 | . 1 . . . System Corruption 1 | . 1 . . . Parts Lost 14 | . 1 . 1 12 Power 1 | . . . . 1 Propulsion 9 | . . . 1 8 Utility 1 | . . . . 1 Weapon 3 | . 1 . . 2 Highest Loss Streak 11 | . 1 . 1 11 To Critical Strikes . | . . . . . Average Slot Usage (%) 94 | . 91 91 98 90 Engine 10 | . 14 11 11 2 Wheel 8 | . 28 . . . Flight 30 | . . 38 42 48 Device 6 | . 14 8 4 . Storage 12 | . 6 11 17 9 Hackware 1 | . . . . 8 Energy Gun 10 | . 12 11 11 7 Ballistic Gun 11 | . 14 11 11 8 Naked Turns 9 | . . . . 9 Heaviest Build 20 | 7 12 13 13 20 Greatest Support 24 | 20 20 16 16 24 Greatest Overweight (x) 4 | . 1 . 1 4 Average Overweight (x) . | . . . . . Largest Inventory Capacity 10 | 5 8 8 8 10 Average Capacity 7 | 5 6 8 8 8 Most Carried 9 | 5 8 7 8 9 Average Carried 5 | 1 5 4 7 7 Final Capacity 8 | 5 8 8 8 5 Final Carried 8 | 4 7 4 8 5 Class Distribution -------------------- 49% | Scavenger-Sprinter 38% | Mutant 11% | Scavenger-Mutant Dominant Class ---------------- Mutant | -10/Materials Scavenger-Sprinter | -9/Materials Scavenger-Sprinter | -9/Mines Scavenger-Sprinter | -8/Materials Resources | -11 -10 -9 -9 -8 ----------- Run | Yrd Mat Mat Min Mat Matter Collected 696 | 267 98 123 89 119 Remotely . | . . . . . Salvage Created 929 | 148 272 173 241 95 Parts 56 | 11 23 2 16 4 Haulers Intercepted 2 | . 2 . . . Recyclers Shooed 5 | . 1 1 3 . Parts Field Recycled . | . . . . . Retrieved Matter . | . . . . . Parts Self-Destructed . | . . . . . Prevented . | . . . . . Kills | -11 -10 -9 -9 -8 ------- Run | Yrd Mat Mat Min Mat Combat Hostiles Destroyed 19 | 1 5 2 7 4 Guns 19 | 1 5 2 7 4 Classes Destroyed 9 | 3 4 1 . 1 Worker 1 | 1 . . . . Builder 1 | . 1 . . . Tunneler 3 | 3 . . . . Hauler 2 | . 2 . . . Recycler 4 | . . 2 2 . Operator 1 | . 1 . . . Swarmer 15 | . 3 2 7 3 Grunt 3 | 1 2 . . . Sentry 1 | . . . . 1 Best Kill Streak 5 | 4 3 3 5 3 Combat Bots Only 3 | 1 3 2 3 3 Max Kills in Single Turn 2 | 2 1 1 1 2 Gunslinging 1 | . . . . 1 Exploded . | . . . . . Melee . | . . . . . Uniques/NPCs Destroyed . | . . . . . Combat | -11 -10 -9 -9 -8 -------- Run | Yrd Mat Mat Min Mat Hostile Shots Fired 175 | 2 22 21 38 92 Missed 61 | . 4 12 6 39 Damage Taken 1590 | 21 180 71 259 1059 Core 721 | 11 49 21 80 560 Absorbed by Shields . | . . . . . Core Remaining (%) 81 | 95 76 . 74 . Volleys Fired 109 | 7 32 25 32 13 Largest 2 | 2 2 2 2 2 Hottest 100 | 60 60 76 76 100 Shots Fired 213 | 14 61 50 64 24 Gun 211 | 14 61 50 64 22 Cannon . | . . . . . Launcher . | . . . . . Special 2 | . . . . 2 Kinetic 107 | 7 32 25 32 11 Thermal 70 | . . 25 32 13 Explosive . | . . . . . Electromagnetic 36 | 7 29 . . . Robot Hit Streak 10 | 10 5 3 8 10 Robot Miss Streak 9 | . 8 5 9 2 Penetration Max . | . . . . . Secondary Targets 4 | . . 1 2 1 Max Gunslinging Chain 1 | . . 1 1 1 Shots Hit Robots 113 | 10 35 24 29 15 Core Hits 47 | 7 14 6 12 8 Critical Kills . | . . . . . Critical Parts Destroyed 1 | . . . 1 . Critical Strikes 3 | . . . 3 . Burn 2 | . . . 2 . Destroy 1 | . . . 1 . Melee Attacks 3 | . 3 . . . Impact . | . . . . . Slashing . | . . . . . Piercing . | . . . . . Sneak Attacks 3 | . 3 . . . Combat Hostiles . | . . . . . Follow-up Attacks . | . . . . . Damage Inflicted 1489 | 130 409 290 372 288 Guns 1435 | 130 359 290 372 284 Cannons . | . . . . . Explosions 25 | . 25 . . . Melee . | . . . . . Ramming 29 | . 25 . . 4 Kinetic 591 | 35 179 104 139 134 Thermal 594 | . 25 186 233 150 Explosive . | . . . . . Electromagnetic 275 | 95 180 . . . Impact . | . . . . . Slashing . | . . . . . Piercing . | . . . . . Highest Corruption 2 | . 2 . . . Average Corruption 1 | . 1 . . . Corruption Purged . | . . . . . Corruption Blocked . | . . . . . Overload Shots . | . . . . . Overflow Damage . | . . . . . Projectiles . | . . . . . Explosions . | . . . . . Melee . | . . . . . Knockbacks . | . . . . . Impact . | . . . . . Kinetic . | . . . . . Secondary . | . . . . . Self-Inflicted Damage 19 | . 17 . . 2 Shots 1 | . 1 . . . Rammed 5 | . 4 . . 1 Targets Rammed 5 | . 4 . . 1 Kicked . | . . . . . Crushed . | . . . . . Highest Temperature 546 | 52 70 258 415 546 Average Temperature 148 | 21 27 151 181 192 Received Heat Transfer 366 | 12 30 . . 324 Effects 14 | . . 2 1 11 Shutdowns 2 | . . . 1 1 Energy Bleed 1 | . . 1 . . Interference 3 | . . 1 . 2 Matter Decay 1 | . . . . 1 Short Circuit 1 | . . . . 1 Damage (minor) 2 | . . . . 2 Damage (major) 4 | . . . . 4 Siege Activations . | . . . . . Robots Corrupted . | . . . . . Combat Hostiles . | . . . . . Parts Fried . | . . . . . Impact Corruptions . | . . . . . Robots Melted . | . . . . . Combat Hostiles . | . . . . . Parts Melted 3 | . . 1 1 1 Heat Transferred 1456 | . 50 407 666 333 Parts Sabotaged . | . . . . . Parts Stolen . | . . . . . Parts Stripped . | . . . . . Power Chain Reactions 1 | . 1 . . . Alert | -11 -10 -9 -9 -8 ------- Run | Yrd Mat Mat Min Mat Peak Influence 294 | 40 217 167 294 285 Initial 91 | . 26 91 64 36 Average 132 | 18 108 131 182 119 Maximum Alert Level 1 | . 1 . 1 1 Low Security (%) 74 | 100 87 100 51 73 Level 1 25 | . 12 . 48 26 Level 2 . | . . . . . Level 3 . | . . . . . Level 4 . | . . . . . Level 5 . | . . . . . High Security . | . . . . . Max Security . | . . . . . Squads Dispatched 3 | . . 1 . 2 Investigation 1 | . . 1 . . Extermination . | . . . . . Reinforcement 1 | . . . . 1 Assault . | . . . . . Garrison 1 | . . . . 1 Intercept . | . . . . . Searches Triggered . | . . . . . Construction Impeded . | . . . . . Haulers Reinforced . | . . . . . Active Scanning Responses . | . . . . . Cargo Convoy Interrupts . | . . . . . Stealth | -11 -10 -9 -9 -8 --------- Run | Yrd Mat Mat Min Mat Distress Signals 3 | . 2 . . 1 Communications Jammed . | . . . . . Distress Signals . | . . . . . Times Spotted 47 | 1 11 4 10 21 Peak Tracking Total 11 | 1 4 3 4 11 Tactical Retreats 3 | . 1 . . 2 Traps | -11 -10 -9 -9 -8 ------- Run | Yrd Mat Mat Min Mat Traps Triggered . | . . . . . Indirectly . | . . . . . Trap Hack Attempts . | . . . . . Triggered . | . . . . . Disarmed . | . . . . . Reprogrammed . | . . . . . Reused . | . . . . . Traps Extracted . | . . . . . Installed . | . . . . . Triggered . | . . . . . Machines | -11 -10 -9 -9 -8 ---------- Run | Yrd Mat Mat Min Mat Machines Disabled 3 | . 1 . . 2 Max in Single Turn 2 | . 1 . . 2 Machines Repaired . | . . . . . Machines Dismantled . | . . . . . Machines Sabotaged . | . . . . . Overloaded Fab Kills . | . . . . . Hacking | -11 -10 -9 -9 -8 --------- Run | Yrd Mat Mat Min Mat Machines Accessed 4 | . . 2 . 2 Terminals 2 | . . 1 . 1 Fabricators . | . . . . . Repair Stations . | . . . . . Recycling Units . | . . . . . Scanalyzers 2 | . . 1 . 1 Garrison Access . | . . . . . Total Hacks 9 | . . 6 . 3 Successful 7 | . . 5 . 2 Failed 2 | . . 1 . 1 Catastrophic 1 | . . . . 1 Database Lockouts . | . . . . . Manual . | . . . . . Terminals 5 | . . 3 . 2 Fabricators . | . . . . . Repair Stations . | . . . . . Recycling Units . | . . . . . Scanalyzers 4 | . . 3 . 1 Garrison Access . | . . . . . Terminal Hacks 3 | . . 2 . 1 Prototype ID Bank 1 | . . 1 . . Branch Access Points 1 | . . . . 1 Zone Layout 1 | . . 1 . . Fabricator Hacks . | . . . . . Repair Station Hacks . | . . . . . Recycling Unit Hacks . | . . . . . Scanalyzer 4 | . . 3 . 1 Insert Component 3 | . . 2 . 1 Analyze 1 | . . 1 . . Garrison Access Hacks . | . . . . . Unauthorized Hacks . | . . . . . Terminals . | . . . . . Fabricators . | . . . . . Repair Stations . | . . . . . Recycling Units . | . . . . . Scanalyzers . | . . . . . Garrison Access . | . . . . . Data Cores Recovered 1 | . 1 . . . Used . | . . . . . Hacking Detections 4 | . . 2 . 2 Full Trace Events 3 | . . 2 . 1 Feedback Events . | . . . . . Feedback Blocked . | . . . . . Robot Schematics Acquired . | . . . . . Robots Built . | . . . . . Authchips . | . . . . . Time . | . . . . . Total Robot Build Rating . | . . . . . Part Schematics Acquired 1 | . . 1 . . Parts Built . | . . . . . Authchips . | . . . . . Time . | . . . . . Total Part Build Rating . | . . . . . Parts Repaired . | . . . . . Time . | . . . . . Parts Recycled . | . . . . . Recycled Matter . | . . . . . Retrieved Matter . | . . . . . Retrieved Components . | . . . . . Parts Scanalyzed 1 | . . 1 . . Part Schematics Acquired 1 | . . 1 . . Parts Damaged . | . . . . . Bothacking | -11 -10 -9 -9 -8 ------------ Run | Yrd Mat Mat Min Mat Used RIF Installer . | . . . . . Robots Hacked 2 | . 2 . . . Non-combat 2 | . 2 . . . Combat . | . . . . . Robot Hacks Applied 2 | . 2 . . . no_distress 2 | . 2 . . . Relay Couplers Released . | . . . . . Fabnet Peak Effective % . | . . . . . Robots Rewired . | . . . . . Allies Hacked . | . . . . . Hacks Repelled . | . . . . . Allies | -11 -10 -9 -9 -8 -------- Run | Yrd Mat Mat Min Mat Total Allies 3 | . . . 3 . Largest Group 3 | . . . 3 2 Highest-Rated Group 40 | . . . 40 24 Highest-Rated Ally 16 | . . . 16 16 Total Orders . | . . . . . Ally Attacks 14 | . . . 10 4 Total Damage 165 | . . . 121 44 Kills 2 | . . . 2 . Allies Corrupted . | . . . . . Allies Melted . | . . . . . Intel | -11 -10 -9 -9 -8 ------- Run | Yrd Mat Mat Min Mat Robot Analysis Total . | . . . . . Derelict Logs Recovered 2 | . . . 2 . Drone Launches . | . . . . . Drone Recoveries . | . . . . . Exploration | -11 -10 -9 -9 -8 ------------- Run | Yrd Mat Mat Min Mat Turns Passed 1366 | 136 364 157 519 190 Spaces Moved 1827 | 134 294 220 849 330 Core 43 | 22 . . . 21 Treads . | . . . . . Legs . | . . . . . Wheels 406 | 112 294 . . . Hover . | . . . . . Flight 1378 | . . 220 849 309 Fastest Speed 25 | 50 80 31 31 25 Average Speed 42 | 75 82 32 31 31 Slowest Speed 280 | 80 95 34 114 280 Overloaded Moves . | . . . . . Propulsion Burnouts . | . . . . . Robots Hopped 10 | . . 2 8 . Cave-ins Triggered . | . . . . . Exploration Rate (%) 34 | 6 29 17 90 32 Regions Visited 4 Branch Regions 1 Pre-discovered Areas 1 | . . . 1 . Known Exits Taken . | . . . . . Unknown Exits Taken 4 | 1 1 1 1 . Scrap Searched 2 | . . . 2 . Spaces Dug 2 | . . . . 2 Terrain Destroyed 45 | . 7 . . 38 Melee . | . . . . . Projectile 2 | . . . . 2 AOE 43 | . 7 . . 36 Terrain Rammed . | . . . . . Walls Destroyed . | . . . . . Machines Disabled . | . . . . . Actions | -11 -10 -9 -9 -8 --------- Run | Yrd Mat Mat Min Mat Total 2200 | 156 356 259 1035 394 Wait 169 | . . . 146 23 Move 1804 | 133 293 215 833 330 Hop 9 | . . 2 7 . Pick Up 37 | 10 9 3 8 7 Fast Attach 2 | . 1 . . 1 Attach 19 | 6 2 4 1 6 Detach 2 | . . 2 . . Swap 22 | . 7 4 5 6 Drop 19 | . 5 4 3 7 Fire 109 | 7 32 25 32 13 Melee 3 | . 3 . . . Ram 5 | . 4 . . 1 Kick . | . . . . . Crush . | . . . . . Escape Stasis . | . . . . . Rewire . | . . . . . Trap . | . . . . . Miscellaneous . | . . . . . Route ------- -11/Scrapyard -10/Materials -9/Materials -9/Mines -8/Materials (discovered 1 exit: Fac) History --------- Turn | Location | Event 2 | -11/Scrapyard | Met Revision 17 66 | -11/Scrapyard | Discovered new exit (range 8) 137 | -11/Scrapyard | Entered Materials 312 | -10/Materials | Build established: Mutant 469 | -10/Materials | Discovered new exit (range 5) 501 | -10/Materials | Entered another Materials area 501 | -9/Materials | Evolved 2 slots: Propulsion x2 585 | -9/Materials | Discovered new exit (range 13) 658 | -9/Materials | Entered Mines 669 | -9/Mines | Discovered new exit (range 6) 701 | -9/Mines | Met a Derelict bent on vengeance 781 | -9/Mines | Learned 4 Materials zone layouts 880 | -9/Mines | Assisted by bots powering up and referring to "LRC-V3" 1031 | -9/Mines | Build established: Scavenger-Sprinter 1038 | -9/Mines | Received a Rocket Launcher from a helpful Derelict 1054 | -9/Mines | Found a hidden stash of uninstalled traps 1177 | -9/Mines | Entered Materials 1177 | -8/Materials | Accompanied by 2 allies 1177 | -8/Materials | Evolved 2 slots: Propulsion x2 1178 | -8/Materials | Identified exit to Factory 1306 | -8/Materials | Garrison activated, responded to threat 1362 | -8/Materials | Core integrity fell below 50% 1364 | -8/Materials | Core integrity fell below 20% 1367 | -8/Materials | Destroyed by G-47 Trooper with Particle Gun Last Messages --------------- Flight Unit destroyed. Penetrated by Slug. Flight Unit destroyed. Broken Flight Unit destroyed. Mining Laser destroyed. Hacking Suite destroyed. Flight Unit destroyed. Critical hit (Blast). Dropped Flight Unit. Dropped Med. Storage Unit. Dropped Enh. Autogun. Critical hit (Burn: +37). K-01 Serf collects debris. Knocked back. Penetrated by Slug. Knocked back. K-01 Serf collects debris. Penetrated by Slug. Knocked back. K-01 Serf collects debris. Map ----- +----------------------------------------------------+ | ?????????????????????????????????????????????????? | | ?????????????????????????????????????????????????? | | ?????????????????????????????????????????????????? | | ?????????????????????????????????????????????????? | | ?????????????????????????????????????????????????? | | ?????????????????????????????????????????????????? | | ?????????????????????????????????????????????????? | | ?????????????????????????????????????????????????? | | ??????????????????????#####??????????????????????? | | ??????????????????????# #???????????????????? | | ??????????????????????# """ #???????????????????? | | ??????????????????????# """ #???????????????????? | | ??????????????????????# """ #???????????????????? | | ??????????????????????# #???????????????????? | | ??????????????????????# """ #???????????????????? | | ??????????????????????# """ #???????????????????? | | #####???????????????###! """ #???????????????????? | | #?????????#######"#% #???????????????????? | | #?????????#||!!!!#" """ #???????????????????? | | "" #?????????#||!!!!=# """ #???????????????????? | | "" #?????????# [!## "" #???????????????????? | | "" #######???### gg##! #???"#??????????????? | | # ####### ggY ###+#####" "## ?????????? | | ##+## % g %H!! ????????? | | a a gT%% *!| ????????? | | ##### u* g k @ ????????? | | #???# ######; ###;########## ! ?????????? | | #######+########## ## ?????????????????????? | | # #### "# ????????????????????? | | # # "" T# ???????????????????? | | # """ """ #"G "# ?????????????????? | | # """"""""" # "" ## "" """ #????????????????? | | # """"" " #### ## S"" """ #????????????????? | | # #?## ## "" """ #????????????????? | | ################# # ??#????????????????? | | ###?###????????????????????? | | =%* #??????????????????????????? | | #??????????????????????????? | | ######/### #### #??????????????????????????? | | ???# ## ######+#####????????????????????????? | | #### ## ## #????????????????????????? | | ## ## ## #????????????????????????? | | ## ## ## #????????????????????????? | | ## ## ## #????????????????????????? | | # ## ## #????????????????????????? | | ## ## ## !! #????????????????????????? | | ## ## ## =! #????????????????????????? | | ## ## ## ! #????????????????????????? | | ######## ############????????????????????????? | | ###??????# #???????????????????????????????????? | +----------------------------------------------------+ Best States ------------- Heat Dissipation 31 Energy Generation 14 Energy Capacity 160 Matter Stores 450 Matter Capacity 450 Sight Range 16 Robot Scan Range 14 Terrain Scan Range 16 Terrain Scan Density 10 Evasion (%) 64 Offensive Hacking 10 Item Schematics ----------------- Flight Unit | -9/Materials | Scanalyzed Robot Schematics ------------------ None Fabricated ------------ Nothing Alien Tech Used ----------------- None Achievements -------------- Safety First Challenges ------------ None Game ------ Seed MicroProtonShielding Manual? 0 Play Time 00:23:32 Cumulative 12.5 hours Start 2024.04.07 @ 01:46:13 End 2024.04.07 @ 02:38:37 Sessions 2 Manual Loads 0 Difficulty Rogue Special Mode None Game No. 32 Rogue 32 Adventurer 0 Explorer 0 Win Type - Total 0 Types 0/0/0/0/0/0/0/0/0 Lore% 15 Gallery% 23 Achievement% 18 Wizard Run 0 Options --------- Layout 1 ASCII 0 Keyboard 0 Movement Arrows Keybinds 0 Fullscreen 1 Font 24/Smallcaps Map View 50x35 Zoom Use 0% Tactical HUD 0 Map Filters NONE Filters NONE Steam 1 RUN: 06e7c8cf-de7a-4e35-8c3b-524ec49ef50e